bitfinex-derivatives/quotes_SOLF0:USTF0_20251202
["timestamp","ask_amount","ask_price","bid_price","bid_amount"]
[1764681615537,3.21,130.35,130.31,3.41280797]
[1764681615738,3.21,130.35,130.31,0.05280797]
[1764681616230,107.4204,130.34,130.31,0.05280797]
[1764681616436,3.21,130.32,130.31,0.05280797]
[1764681617038,107.4436,130.31,130.25,3.36]
[1764681617228,107.4436,130.31,130.23,4.54435858]
[1764681617229,3.21,130.3,130.23,4.54435858]
[1764681617429,10.1176,130.3,130.23,4.54435858]
[1764681617629,10.1176,130.3,130.24,3.36]
[1764681617927,0.05280797,130.28,130.26,0.05376042]
[1764681618623,0.05280797,130.28,130.26,3.41376042]
[1764681620838,3.26280797,130.28,130.26,0.05376042]
[1764681621334,0.05280797,130.28,130.26,0.05376042]
[1764681621540,0.05280797,130.28,130.26,3.41376042]
[1764681623239,9.37938988,130.49,130.46,2.56]
[1764681623444,107.1859,130.63,130.52,107.2693]
[1764681623838,7.70005601,130.62,130.54,118.69145858]
[1764681624035,7.70005601,130.62,130.55,62.0]
[1764681624234,7.70005601,130.62,130.57,0.05014482]
[1764681625237,3.21,130.61,130.57,0.05014482]
[1764681625745,7.70005601,130.62,130.57,0.05014482]
[1764681625948,10.91005601,130.62,130.57,0.05014482]
[1764681626240,3.21,130.61,130.57,0.05014482]
[1764681626941,3.21,130.61,130.5,6.8968]
[1764681626942,3.21,130.58,130.5,6.8968]
[1764681627842,3.21,130.58,130.51,62.0]
[1764681628041,71.45229747,130.59,130.53,0.05267574]
[1764681628438,107.2249,130.58,130.53,0.05267574]
[1764681629442,114.1181,130.58,130.53,0.05267574]
[1764681629740,107.2401,130.56,130.53,0.05267574]
[1764681630136,3.21,130.55,130.53,0.05267574]
[1764681630536,3.21,130.56,130.53,0.05267574]
[1764681630937,110.4509,130.56,130.53,0.05267574]
[1764681631142,3.21,130.55,130.53,0.05267574]
[1764681633339,3.23,130.57,130.53,0.05267574]
[1764681633750,3.23,130.57,130.55,0.22981902]
[1764681634749,110.461,130.57,130.55,0.22981902]
[1764681634950,3.23,130.57,130.55,0.22981902]
[1764681635356,10.1237,130.57,130.55,0.22981902]
[1764681636443,117.3538,130.57,130.55,0.22981902]
[1764681636648,3.23,130.56,130.55,0.22981902]
[1764681639543,10.1242,130.56,130.53,0.05267574]
[1764681641157,110.4898,130.53,130.47,62.0]
[1764681641453,3.22,130.52,130.41,111.90275858]
[1764681641756,3.22,130.52,130.42,107.3497]
[1764681642157,0.05267574,130.48,130.46,0.05721323]
[1764681644959,6.8967,130.51,130.46,0.05721323]
[1764681645456,10.1167,130.51,130.46,0.05721323]
[1764681646358,3.22,130.5,130.46,0.05721323]
[1764681647353,10.1167,130.51,130.46,0.05721323]
[1764681647653,3.22,130.5,130.46,0.05721323]
[1764681648756,6.8967,130.51,130.46,0.05721323]
[1764681648757,10.1175,130.49,130.46,0.05721323]
[1764681648946,3.22,130.48,130.46,0.05721323]
[1764681649760,10.1182,130.48,130.46,0.05721323]
[1764681649955,3.22,130.47,130.46,0.05721323]
[1764681650770,3.22,130.47,130.39,175.0149]
[1764681650771,3.22,130.47,130.39,67.64]
[1764681651150,3.22,130.5,130.4,107.3661]
[1764681651360,3.22,130.5,130.41,107.3606]
[1764681651560,3.22,130.54,130.43,107.3402]
[1764681651762,0.05406868,130.5,130.47,0.04985815]
[1764681652856,3.27406868,130.5,130.47,62.04985815]
[1764681653962,3.27406868,130.5,130.47,0.04985815]
[1764681656759,3.27406868,130.5,130.47,62.04985815]
[1764681656958,0.05406868,130.5,130.47,0.04985815]
[1764681657869,3.27406868,130.5,130.47,0.04985815]
[1764681658067,3.22,130.55,130.47,1.58985815]
[1764681658263,3.22,130.56,130.46,67.5]
[1764681658467,3.22,130.56,130.47,107.3113]
[1764681658961,3.22,130.56,130.5,6.8969]
[1764681659262,3.22,130.56,130.52,0.05014585]
[1764681659469,10.1126,130.59,130.52,6.94594585]
[1764681659667,3.22,130.58,130.54,0.05766286]
[1764681661363,10.1129,130.58,130.54,0.05766286]
[1764681661553,3.22,130.57,130.54,0.05766286]
[1764681662567,10.1134,130.57,130.54,0.05766286]
[1764681662872,3.22,130.56,130.54,0.05766286]
[1764681664368,3.22,130.55,130.54,0.05766286]
[1764681666171,6.8931,130.58,130.54,0.05766286]
[1764681666373,10.1131,130.58,130.54,0.05766286]
[1764681667375,10.1131,130.58,130.55,62.0]
[1764681670273,3.2,130.64,130.55,62.0]
[1764681670572,3.2,130.64,130.58,0.05760385]
[1764681671274,110.3728,130.64,130.58,0.05760385]
[1764681671475,3.2,130.6,130.58,0.05760385]
[1764681671662,107.1971,130.61,130.53,6.7963407]
[1764681671663,3.2,130.57,130.53,6.7963407]
[1764681672576,3.2,130.57,130.51,9.06123211]
[1764681672577,3.2,130.55,130.54,0.05892459]
[1764681673572,0.05221146,130.56,130.54,0.05892459]
[1764681673878,3.25221146,130.56,130.54,0.05892459]
[1764681675174,3.2,130.54,130.49,6.89596593]
[1764681675480,3.2,130.54,130.42,2.55]
[1764681675481,107.3042,130.48,130.39,3.31]
[1764681675679,174.7842,130.48,130.39,3.31]
[1764681675878,6.8993,130.46,130.39,10.2124]
[1764681676175,0.04996066,130.44,130.41,0.05831539]
[1764681676374,0.04996066,130.44,130.41,3.36831539]
[1764681677066,0.04996066,130.44,130.42,6.901]
[1764681677270,174.7816,130.51,130.43,3.31]
[1764681677879,6.8977,130.49,130.43,3.31]
[1764681678173,107.37198061,130.47,130.45,0.0529309]
[1764681678375,107.36266117,130.47,130.45,0.04901616]
[1764681678581,174.90266117,130.47,130.45,0.04901616]
[1764681679179,107.3317,130.45,130.36,3.31]
[1764681679380,107.3369,130.44,130.36,3.31]
[1764681679680,6.901,130.43,130.36,3.31]
[1764681680066,107.3537,130.42,130.36,3.31]
[1764681680266,107.3537,130.42,130.38,0.05283548]
[1764681680267,6.95585468,130.4,130.38,0.05283548]
[1764681680467,6.95585468,130.4,130.38,0.05246217]
[1764681682373,74.47585468,130.4,130.38,0.05246217]
[1764681683072,181.84655468,130.4,130.38,0.05246217]
[1764681683278,114.32655468,130.4,130.38,0.05246217]
[1764681683784,6.95585468,130.4,130.38,0.05246217]
[1764681684375,6.95585468,130.4,130.34,62.0]
[1764681685180,6.9035,130.38,130.31,6.9068]
[1764681685380,0.0498346,130.36,130.34,0.05633996]
[1764681686878,9.30323049,130.55,130.37,3.31]
[1764681687080,0.75,130.72,130.63,3.31]
[1764681687376,114.74856541,130.78,130.64,6.8894]
[1764681687377,3.75168059,130.74,130.64,6.8894]
[1764681687588,68.76,130.76,130.63,3.31]
[1764681687589,72.51168059,130.76,130.63,3.31]
[1764681687886,0.05304273,130.71,130.68,0.05272]
[1764681688183,0.05304273,130.71,130.68,0.05076929]
[1764681688387,1.59304273,130.71,130.59,110.5158]
[1764681688587,72.4809113,130.7,130.59,110.5158]
[1764681688788,3.7009113,130.7,130.61,117.3976]
[1764681689079,186.4708113,130.7,130.61,6.8909]
[1764681689387,0.05567301,130.67,130.64,0.0571402]
[1764681689787,68.76,130.66,130.64,0.0571402]
[1764681691079,68.76,130.66,130.58,62.0]
[1764681691280,3.7009113,130.65,130.58,62.0]
[1764681691680,3.7009113,130.65,130.56,3.31]
[1764681691880,3.7009113,130.65,130.56,117.4378]
[1764681692083,3.7009113,130.65,130.59,0.053282]
[1764681692280,0.05366764,130.62,130.59,0.053282]
[1764681692482,0.05366764,130.62,130.59,3.143282]
[1764681692782,68.71,130.69,130.61,3.09]
[1764681693389,68.7,130.68,130.61,3.09]
[1764681693589,0.05878181,130.66,130.63,0.05156204]
[1764681695379,3.7509113,130.65,130.63,0.05156204]
[1764681696094,72.3709113,130.65,130.63,0.05156204]
[1764681696389,0.05,130.64,130.57,3.09]
[1764681696588,72.3209113,130.65,130.57,3.09]
[1764681696989,68.62,130.64,130.57,3.09]
[1764681697391,0.05555019,130.62,130.59,3.14233015]
[1764681699091,0.05555019,130.62,130.59,10.03413015]
[1764681699395,107.2345,130.57,130.45,3.31]
[1764681699593,6.8949,130.54,130.45,3.31]
[1764681700185,0.05579829,130.51,130.48,0.05678533]
[1764681700398,70.76,130.6,130.5,3.31]
[1764681700585,70.76,130.6,130.51,3.31]
[1764681701493,0.05089473,130.57,130.54,0.05258723]
[1764681702897,70.77089473,130.57,130.54,0.05258723]
[1764681704697,0.05089473,130.57,130.54,3.36258723]
[1764681705284,0.05089473,130.57,130.54,10.25738723]
[1764681705500,0.05089473,130.57,130.55,3.31]
[1764681706591,0.05089473,130.57,130.54,0.05258723]
[1764681708800,0.05089473,130.57,130.56,10.2038]
[1764681710301,0.05089473,130.57,130.56,3.31]
[1764681710893,0.05089473,130.57,130.54,0.05258723]
[1764681711191,0.05089473,130.57,130.54,3.36258723]
[1764681712499,70.78,130.62,130.56,3.31]
[1764681712900,70.78,130.62,130.56,10.2035]
[1764681713503,0.05340397,130.6,130.58,0.05764815]
[1764681713896,0.05340397,130.6,130.58,62.05764815]
[1764681714801,0.05340397,130.6,130.58,0.05764815]
[1764681715799,107.2133,130.59,130.49,3.31]
[1764681716195,107.1832,130.63,130.5,110.5968]
[1764681716403,107.1688,130.65,130.53,3.31]
[1764681716602,177.7941,130.64,130.53,3.31]
[1764681716804,0.0551545,130.6,130.57,0.05381602]
[1764681717400,70.6551545,130.6,130.57,0.05381602]
[1764681718803,0.0551545,130.6,130.57,0.05381602]
[1764681719007,70.6351545,130.6,130.57,0.05381602]
[1764681719708,77.4724,130.59,130.57,0.05381602]
[1764681720220,70.54,130.59,130.57,0.05381602]
[1764681720909,70.56,130.58,130.57,0.05381602]
[1764681721712,70.56,130.58,130.52,6.8959]
[1764681722011,70.56,130.58,130.5,3.31]
[1764681722305,177.7859,130.58,130.47,107.3089]
[1764681722505,107.2343,130.57,130.46,110.6237]
[1764681722709,0.05323035,130.53,130.5,0.05485325]
[1764681722909,70.5,130.52,130.5,0.05485325]
[1764681723812,0.05323035,130.53,130.5,10.26175325]
[1764681724003,0.05323035,130.53,130.51,3.31]
[1764681724508,0.05323035,130.53,130.51,65.31]
[1764681724910,0.05323035,130.53,130.5,6.95175325]
[1764681725312,0.05323035,130.53,130.5,10.26175325]
[1764681725812,0.05323035,130.53,130.5,0.05485325]
[1764681726213,70.4,130.52,130.5,0.05485325]
[1764681727008,6.94883035,130.53,130.5,0.05485325]
[1764681727310,70.36,130.52,130.5,3.36485325]
[1764681727508,70.36,130.52,130.5,0.05485325]
[1764681727717,6.94883035,130.53,130.5,0.05485325]
[1764681727909,70.34,130.52,130.5,0.05485325]
[1764681730009,6.8965,130.51,130.5,0.05485325]
[1764681730215,107.2789,130.51,130.42,3.2]
[1764681730715,107.2969,130.49,130.39,3.2]
[1764681730918,107.3063,130.48,130.39,3.2]
[1764681731209,6.9002,130.44,130.42,0.05430927]
[1764681732718,107.3452,130.43,130.35,3.2]
[1764681732903,70.22,130.42,130.35,3.2]
[1764681733305,6.9024,130.4,130.33,6.9056]
[1764681733508,6.9024,130.4,130.32,110.6312]
[1764681733809,0.05835252,130.37,130.35,0.05654615]
[1764681737322,6.96235252,130.37,130.35,0.05654615]
[1764681738524,0.05835252,130.37,130.35,0.05654615]
[1764681738719,70.08,130.36,130.35,0.05654615]
[1764681739106,0.05835252,130.37,130.35,0.05654615]
[1764681739313,70.04,130.36,130.35,3.25654615]
[1764681739616,70.04,130.36,130.35,0.05654615]
[1764681740214,6.96235252,130.37,130.35,0.05654615]
[1764681740513,70.04,130.36,130.35,0.05654615]
[1764681741012,70.07835252,130.37,130.35,3.25654615]
[1764681741218,70.07835252,130.37,130.35,0.05654615]
[1764681741614,76.98275252,130.37,130.35,0.05654615]
[1764681742220,70.0,130.36,130.35,0.05654615]
[1764681742922,76.9049,130.36,130.3,6.9074]
[1764681743121,6.9049,130.36,130.3,6.9074]
[1764681743318,69.96,130.35,130.31,3.2]
[1764681743713,6.9049,130.36,130.31,3.2]
[1764681743920,70.0128736,130.34,130.32,0.051528]
[1764681744311,107.3473,130.43,130.33,3.2]
[1764681744515,107.3226,130.46,130.37,3.2]
[1764681744713,107.3051,130.48,130.39,3.2]
[1764681744926,111.79310059,130.52,130.41,3.2]
[1764681745127,107.2734,130.52,130.42,3.2]
[1764681745323,0.05502096,130.48,130.46,0.05258553]
[1764681746122,6.95322096,130.48,130.46,0.05258553]
[1764681746326,69.96,130.47,130.46,0.05258553]
[1764681749825,6.95322096,130.48,130.46,0.05258553]
[1764681750026,0.05502096,130.48,130.46,3.25258553]
[1764681750236,0.05502096,130.48,130.46,0.05258553]
[1764681750629,6.95322096,130.48,130.46,0.05258553]
[1764681751534,0.05502096,130.48,130.46,0.05258553]
[1764681752525,0.05502096,130.48,130.46,3.13258553]
[1764681753223,6.8957,130.53,130.46,3.13258553]
[1764681753421,69.72,130.52,130.43,65.08]
[1764681753928,176.994,130.52,130.43,65.08]
[1764681754125,6.8974,130.5,130.43,65.08]
[1764681754321,0.05063324,130.48,130.45,0.05697307]
[1764681755835,69.79063324,130.48,130.45,0.05697307]
[1764681756730,6.8988,130.47,130.45,0.05697307]
[1764681757536,69.79063324,130.48,130.45,0.05697307]
[1764681758540,69.6,130.47,130.45,0.05697307]
[1764681758940,0.05063324,130.48,130.45,0.05697307]
[1764681759239,69.58,130.47,130.45,0.05697307]
[1764681760035,76.4789,130.47,130.45,0.05697307]
[1764681760741,6.8989,130.47,130.45,0.05697307]
[1764681761037,69.54,130.46,130.45,0.05697307]
[1764681761239,6.8999,130.45,130.41,3.08]
[1764681761841,6.9002,130.44,130.41,3.08]
[1764681762243,6.9569675,130.44,130.41,3.13340935]
[1764681762633,0.0567675,130.44,130.41,3.13340935]
[1764681763030,0.0567675,130.44,130.41,0.05340935]
[1764681763236,107.3993675,130.44,130.35,3.22]
[1764681763436,107.3426,130.44,130.35,3.22]
[1764681764244,0.05208912,130.41,130.38,0.0565734]
[1764681764443,69.46,130.4,130.38,0.0565734]
[1764681765034,16.40352907,130.54,130.39,1.54]
[1764681765363,6.8945,130.55,130.47,3.22]
[1764681765544,76.5745,130.55,130.47,3.22]
[1764681765745,76.5745,130.55,130.49,3.22]
[1764681765746,69.68,130.55,130.49,3.22]
[1764681766044,69.68,130.55,130.51,0.05351124]
[1764681766247,0.05601042,130.53,130.51,0.05351124]
[1764681766449,0.05601042,130.53,130.45,3.22]
[1764681766637,107.2655,130.53,130.43,107.3375]
[1764681767141,107.2655,130.53,130.44,3.22]
[1764681767338,6.8964,130.52,130.44,3.22]
[1764681767541,0.05591092,130.49,130.47,0.05195813]
[1764681773346,6.95381092,130.49,130.47,0.05195813]
[1764681775351,0.05591092,130.49,130.47,0.05195813]
[1764681779052,0.05591092,130.49,130.41,6.9015]
[1764681779349,107.2959,130.49,130.4,3.22]
[1764681780258,0.05282773,130.46,130.43,0.04955898]
[1764681780567,69.26,130.45,130.43,0.04955898]
[1764681781347,76.1599,130.45,130.43,0.04955898]
[1764681781542,69.26,130.45,130.38,10.1233]
[1764681781756,2.653e-05,130.61,130.54,3.22]
[1764681781961,6.8924,130.59,130.54,3.22]
[1764681782159,6.8924,130.59,130.52,3.22]
[1764681782355,70.44,130.62,130.54,10.1145]
[1764681782553,214.2946,130.68,130.57,107.2277]
[1764681782771,107.1135,130.72,130.61,6.8909]
[1764681782963,70.5,130.7,130.61,10.1109]
[1764681783259,70.5,130.7,130.62,3.22]
[1764681783555,0.05394463,130.67,130.62,3.22]
[1764681783747,0.05394463,130.67,130.65,0.0486292]
[1764681784556,0.05394463,130.67,130.65,3.2686292]
[1764681784862,0.05394463,130.67,130.65,10.1573292]
[1764681785662,0.05394463,130.67,130.65,0.0486292]
[1764681785957,0.05394463,130.67,130.65,3.2686292]
[1764681786559,0.00394463,130.67,130.65,117.3211292]
[1764681786763,70.38,130.73,130.66,3.22]
[1764681787163,70.38,130.73,130.67,6.8878]
[1764681787783,0.04894026,130.71,130.69,0.05816387]
[1764681791866,0.04894026,130.71,130.69,3.49816387]
[1764681792168,0.04894026,130.71,130.7,3.44]
[1764681792673,134.28157228,130.83,130.71,110.5514]
[1764681792674,111.32157228,130.83,130.71,110.5514]
[1764681792868,70.12,130.82,130.72,107.106]
[1764681793065,70.12,130.82,130.72,110.546]
[1764681793665,0.05605999,130.78,130.76,0.05646114]
[1764681794173,0.05605999,130.78,130.7,217.6852]
[1764681794375,70.14,130.81,130.71,6.8857]
[1764681795284,0.0552177,130.77,130.75,0.05550713]
[1764681796264,0.0552177,130.77,130.69,3.44]
[1764681796465,70.08,130.79,130.69,3.44]
[1764681796661,6.8825,130.78,130.69,3.44]
[1764681796870,107.0576,130.78,130.69,10.3267]
[1764681797074,177.1323,130.79,130.69,3.44]
[1764681797266,0.05193257,130.75,130.73,0.04843559]
[1764681800673,0.05193257,130.75,130.73,3.48843559]
[1764681802475,70.06,130.79,130.74,3.44]
[1764681803478,70.06,130.79,130.75,10.3234]
[1764681803479,0.05312643,130.78,130.75,10.3234]
[1764681803674,0.05312643,130.78,130.75,10.37219924]
[1764681807578,0.05312643,130.78,130.75,0.04879924]
[1764681808280,0.05312643,130.78,130.75,10.37239924]
[1764681810081,0.05312643,130.78,130.76,3.44]
[1764681811577,0.05312643,130.78,130.75,0.04879924]
[1764681813882,6.883,130.77,130.75,0.04879924]
[1764681814077,69.6,130.76,130.75,0.04879924]
[1764681815382,75.5012788,130.76,130.75,0.04879924]
[1764681815983,83.9049788,130.76,130.7,6.886]
[1764681816178,76.4837,130.76,130.7,6.886]
[1764681816375,5.90598238,130.75,130.7,6.886]
[1764681816580,76.4837,130.76,130.7,6.886]
[1764681816891,5.90598238,130.75,130.67,3.27]
[1764681817182,5.90598238,130.75,130.7,0.05346437]
[1764681817183,0.05684208,130.72,130.7,0.05346437]
[1764681817387,75.39305841,130.71,130.7,0.05346437]
[1764681817579,75.39305841,130.71,130.65,6.8887]
[1764681817778,6.8865,130.7,130.65,10.1587]
[1764681817983,69.48,130.71,130.62,3.27]
[1764681818289,5.91546111,130.7,130.62,3.27]
[1764681818479,0.04911456,130.67,130.65,0.053707]
[1764681818785,69.46,130.66,130.65,0.053707]
[1764681819788,75.38815672,130.66,130.59,65.03]
[1764681819986,69.46,130.66,130.59,3.03]
[1764681820191,5.92844527,130.65,130.59,3.03]
[1764681820490,5.92844527,130.64,130.59,3.03]
[1764681820690,0.05539615,130.63,130.6,0.05118352]
[1764681821083,0.05539615,130.63,130.6,3.08118352]
[1764681822590,0.05539615,130.63,130.6,9.97248352]
[1764681824085,0.05539615,130.63,130.6,0.05118352]
[1764681824284,0.05539615,130.63,130.6,3.08118352]
[1764681825185,0.05539615,130.63,130.61,6.8912]
[1764681825490,0.05539615,130.63,130.62,3.03]
[1764681825892,6.888,130.68,130.62,3.03]
[1764681826094,75.27168112,130.67,130.62,3.03]
[1764681826295,5.91418388,130.66,130.62,3.03]
[1764681826596,69.32,130.67,130.62,3.03]
[1764681826787,5.9141835,130.66,130.63,3.03]
[1764681826985,0.04962581,130.66,130.63,3.08522426]
[1764681828491,0.04962581,130.66,130.63,0.05522426]
[1764681829992,6.93842581,130.66,130.63,0.05522426]
[1764681830299,5.83761065,130.65,130.63,0.05522426]
[1764681830603,0.04962581,130.66,130.63,0.05522426]
[1764681830899,12.72681211,130.65,130.63,0.05522426]
[1764681831198,6.8892,130.65,130.63,0.05522426]
[1764681832702,6.89,130.64,130.58,6.8926]
[1764681833495,6.8908,130.62,130.57,3.03]
[1764681833695,0.05756309,130.61,130.58,0.05708779]
[1764681833891,0.05756309,130.61,130.58,3.08708779]
[1764681834094,6.94876309,130.61,130.58,0.05708779]
[1764681834294,0.05756309,130.61,130.58,3.08708779]
[1764681835206,0.05756309,130.61,130.6,3.03]
[1764681837098,0.05756309,130.61,130.58,3.08708779]
[1764681837702,0.05756309,130.61,130.58,9.97978779]
[1764681840311,0.05756309,130.61,130.6,3.03]
[1764681841103,0.05756309,130.61,130.59,9.9221]
[1764681842316,0.05756309,130.61,130.6,3.03]
[1764681844410,0.05756309,130.61,130.59,6.8921]
[1764681844613,0.05756309,130.61,130.59,9.9221]
[1764681849028,0.05756309,130.61,130.6,3.19]
[1764681850116,0.05756309,130.61,130.6,10.0817]
[1764681851524,6.8899,130.64,130.6,10.0817]
[1764681851834,6.8899,130.64,130.61,3.19]
[1764681852036,6.8899,130.64,130.57,3.19]
[1764681852225,6.8899,130.64,130.55,6.8942]
[1764681852226,107.1818,130.63,130.55,6.8942]
[1764681852625,0.05526039,130.6,130.58,0.05879698]
[1764681853026,68.62,130.59,130.58,0.05879698]
[1764681853226,75.5123,130.59,130.58,0.05879698]
[1764681855232,0.05526039,130.6,130.58,3.24879698]
[1764681858537,0.05526039,130.6,130.59,10.0822]
[1764681859037,68.58,130.63,130.61,3.19]
[1764681860133,68.63835743,130.63,130.61,3.24279696]
[1764681860531,68.63835743,130.63,130.61,0.05279696]
[1764681864637,68.63835743,130.63,130.62,3.19]
[1764681864845,68.34,130.69,130.62,3.19]
[1764681865138,5.89229961,130.68,130.62,3.19]
[1764681865340,68.34,130.69,130.62,3.19]
[1764681865542,5.89151704,130.68,130.62,3.19]
[1764681865736,0.05559144,130.66,130.64,3.24632287]
[1764681867337,0.05559144,130.66,130.64,10.13552287]
[1764681867540,0.05559144,130.66,130.65,3.19]
[1764681868332,0.05559144,130.66,130.64,6.94552287]
[1764681871440,0.05559144,130.66,130.65,6.8891]
[1764681871847,0.05559144,130.66,130.64,3.24632287]
[1764681872645,0.05559144,130.66,130.65,10.1391]
[1764681873936,0.05559144,130.66,130.65,3.25]
[1764681874342,0.05559144,130.66,130.64,3.30632287]
[1764681876049,0.05559144,130.66,130.64,10.19572287]
[1764681876648,0.05559144,130.66,130.65,3.25]
[1764681877047,0.05559144,130.66,130.64,6.94572287]
[1764681877048,0.05559144,130.66,130.64,0.05632287]
[1764681879255,0.05559144,130.66,130.64,3.13632287]
[1764681883143,0.05559144,130.66,130.64,0.05632287]
[1764681883963,0.05559144,130.66,130.64,3.13632287]
[1764681884445,0.05559144,130.66,130.65,4.85431971]
[1764681888966,0.05559144,130.66,130.65,3.08]
[1764681891756,0.05559144,130.66,130.65,9.9691]
[1764681892351,0.05559144,130.66,130.65,3.08]
[1764681895360,1.77431971,130.72,130.65,9.969]
[1764681895560,68.08,130.72,130.66,3.08]
[1764681896463,0.05823059,130.7,130.68,0.05573887]
[1764681897661,6.94463059,130.7,130.68,0.05573887]
[1764681901166,0.05823059,130.7,130.68,0.05573887]
[1764681902271,6.94473059,130.7,130.68,0.05573887]
[1764681906763,1.8325503,130.7,130.63,9.9697]
[1764681906973,1.77431971,130.68,130.61,3.08]
[1764681907763,1.77431971,130.68,130.63,0.05822466]
[1764681907969,0.04991538,130.66,130.63,0.05822466]
[1764681908274,0.04991538,130.66,130.63,3.13822466]
[1764681908474,68.04,130.7,130.63,4.67822466]
[1764681908675,68.04,130.7,130.63,3.13822466]
[1764681908876,68.04,130.7,130.65,3.18]
[1764681909377,74.9265,130.7,130.66,3.18]
[1764681909568,0.04988485,130.69,130.66,3.2353256]
[1764681910174,0.04988485,130.69,130.68,3.18]
[1764681913167,0.04988485,130.69,130.67,3.18]
[1764681916273,0.04988485,130.69,130.66,3.2353256]
[1764681916980,0.04988485,130.69,130.66,0.0553256]
[1764681919382,6.93688485,130.69,130.66,0.0553256]
[1764681919578,0.04988485,130.69,130.66,0.0553256]
[1764681919780,0.04988485,130.69,130.63,3.18]
[1764681920185,6.888,130.67,130.63,3.18]
[1764681920382,6.888,130.67,130.61,6.8911]
[1764681920580,6.888,130.67,130.61,10.0711]
[1764681920788,0.0569004,130.65,130.63,0.05841965]
[1764681921083,68.02,130.64,130.63,0.05841965]
[1764681922179,0.56756434,130.69,130.68,6.8875]
[1764681922478,3.03,130.8,130.71,2.79]
[1764681922686,68.02,130.82,130.76,2.79]
[1764681923285,0.05125983,130.8,130.78,0.05376931]
[1764681926288,0.05125983,130.8,130.79,2.79]
[1764681936089,0.05125983,130.8,130.78,0.05376931]
[1764681936392,0.05125983,130.8,130.78,2.83376931]
[1764681941491,3.16125983,130.8,130.78,0.05376931]
[1764681942082,4.29957228,130.83,130.78,2.83376931]
[1764681942392,7.40957228,130.83,130.78,2.83376931]
[1764681943189,0.05046657,130.82,130.78,2.83376931]
[1764681945987,0.05046657,130.82,130.78,9.71576931]
[1764681946296,0.05046657,130.82,130.79,2.73]
[1764681950497,3.16046657,130.82,130.78,0.05376931]
[1764681951498,10.04086657,130.82,130.78,0.05376931]
[1764681951793,3.11,130.81,130.78,2.78376931]
[1764681952095,9.9912,130.8,130.78,0.05376931]
[1764681952898,0.05046657,130.82,130.78,2.78376931]
[1764681953403,3.16046657,130.82,130.78,2.78376931]
[1764681953897,10.04056657,130.82,130.78,2.78376931]
[1764681956502,6.93056657,130.82,130.78,2.78376931]
[1764681957301,10.04056657,130.82,130.78,2.78376931]
[1764681959000,3.16046657,130.82,130.78,2.78376931]
[1764681959203,0.05046657,130.82,130.79,2.73]
[1764681960302,0.05046657,130.82,130.79,9.6115]
[1764681960497,0.05046657,130.82,130.8,2.73]
[1764681961306,10.04056657,130.82,130.78,2.78376931]
[1764681961605,6.93056657,130.82,130.78,2.78376931]
[1764681962007,0.05046657,130.82,130.8,2.73]
[1764681964201,3.16046657,130.82,130.78,2.78376931]
[1764681965306,10.04106657,130.82,130.78,2.78376931]
[1764681965909,9.991,130.81,130.78,0.05376931]
[1764681967009,3.11,130.8,130.78,0.05376931]
[1764681968003,5.71944542,130.79,130.78,0.05376931]
[1764681968199,3.11,130.8,130.78,0.05376931]
[1764681969012,70.95,130.8,130.78,0.05376931]
[1764681969514,3.28,130.79,130.78,0.05376931]
[1764681969699,3.28,130.78,130.71,2.73]
[1764681969902,3.28,130.78,130.67,107.1451]
[1764681969903,3.28,130.78,130.74,2.73]
[1764681970295,79.99511048,130.8,130.74,2.73]
[1764681970495,8.99852283,130.79,130.74,2.73]
[1764681970710,0.05558094,130.78,130.76,2.73]
[1764681971097,3.33558094,130.78,130.76,2.73]
[1764681971302,3.28,130.77,130.75,0.05244582]
[1764681972310,10.1629,130.77,130.75,0.05244582]
[1764681974611,3.28,130.77,130.75,0.05244582]
[1764681975417,3.28,130.75,130.7,2.73]
[1764681975710,3.28,130.74,130.7,2.73]
[1764681976102,3.28,130.73,130.67,2.73]
[1764681976502,0.05581227,130.71,130.69,2.78312642]
[1764681978316,71.15581227,130.71,130.69,0.05312642]